fUST/lending_fUST_20251020
["ID","MTS","AMOUNT","RATE_DAILY","PERIOD"]
[391880366,1760949053834,-174.23689044,0.00025973,2]
[391880367,1760949053843,-500.0,0.00025973,2]
[391880368,1760949053853,-500.0,0.00025973,2]
[391880369,1760949053862,-500.0,0.00025973,2]
[391880370,1760949053871,-150.0,0.00025973,2]
[391880371,1760949053881,-321.52486504,0.00025976,2]
[391880372,1760949053890,-507.7337803,0.00025988,2]
[391880373,1760949053900,-42486.16736639,0.00026,2]
[391880374,1760949053910,-667.95919376,0.00026,5]
[391880375,1760949053920,-173.2158198,0.00026,5]
[391880376,1760949053929,-736.0,0.00026003,3]
[391880377,1760949053939,-199.0,0.00026027,10]
[391880378,1760949053948,-1413.0,0.00026047,7]
[391880379,1760949053958,-194.72792766,0.00026051,2]
[391880380,1760949053968,-533.88981491,0.00026051,2]
[391880381,1760949053978,-736.0,0.00026058,3]
[391880382,1760949053988,-1500.0,0.00026068,2]
[391880383,1760949053998,-1500.0,0.00026068,2]
[391880384,1760949054008,-502.42718868,0.00026068,2]
[391880385,1760949054018,-1500.0,0.00026068,2]
[391880386,1760949054029,-1500.0,0.00026068,2]
[391880387,1760949054042,-736.0,0.00026113,3]
[391880388,1760949054052,-616.45346026,0.00026121,2]
[391880389,1760949054061,-1000.0,0.00026121,2]
[391880390,1760949054073,-410.62875183,0.00026121,2]
[391880391,1760949054083,-1120.1437084,0.00026121,2]
[391880392,1760949054092,-1013.90856149,0.00026121,2]
[391880393,1760949054101,-679.84697018,0.00026121,2]
[391880394,1760949054112,-1000.0,0.00026121,2]
[391880395,1760949054121,-1000.0,0.00026121,2]
[391880396,1760949054131,-1000.0,0.00026121,2]
[391880397,1760949054141,-1004.3291338,0.00026121,2]
[391880398,1760949054151,-1000.0,0.00026121,2]
[391880399,1760949054160,-1000.0,0.00026121,2]
[391880400,1760949054170,-933.28505328,0.00026121,2]
[391880401,1760949054179,-1000.0,0.00026121,2]
[391880402,1760949054189,-433.48337635,0.00026121,2]
[391880403,1760949054199,-506.86946724,0.00026121,2]
[391880404,1760949054209,-1000.0,0.00026121,2]
[391880405,1760949054219,-490.62025387,0.00026121,2]
[391880406,1760949054229,-1000.0,0.00026121,2]
[391880407,1760949054239,-1000.0,0.00026121,2]
[391880408,1760949054249,-1000.0,0.00026121,2]
[391880409,1760949054258,-320.58791878,0.00026121,2]
[391880410,1760949054268,-1000.0,0.00026121,2]
[391880411,1760949054278,-505.07238587,0.00026121,2]
[391880412,1760949054287,-1015.34274103,0.00026121,2]
[391880413,1760949054297,-505.30308015,0.00026121,2]
[391880414,1760949054307,-1012.92329566,0.00026121,2]
[391880415,1760949054316,-511.13870138,0.00026121,2]
[391880416,1760949054326,-340.65054617,0.00026152,2]
[391880417,1760949054338,-736.0,0.00026168,3]
[391880418,1760949054352,-1413.0,0.000262,2]
[391880419,1760949054366,-168.0,0.00026204,2]
[391880420,1760949054378,-5000.0,0.00026215,2]
[391880421,1760949054391,-250.0,0.00026221,2]
[391880422,1760949054404,-300.0,0.00026221,2]
[391880423,1760949054417,-736.0,0.00026222,3]
[391880424,1760949054431,-200.67626121,0.00026227,5]
[391880425,1760949054447,-168.0,0.00026275,2]
[391880426,1760949054462,-168.0,0.00026275,2]
[391880427,1760949054476,-736.0,0.00026277,3]
[391880428,1760949054488,-168.0,0.00026277,2]
[391880429,1760949054500,-199.0,0.00026301,11]
[391880430,1760949054513,-736.0,0.00026332,3]
[391880431,1760949054526,-518.878395,0.00026346,2]
[391880432,1760949054540,-447.001279,0.00026346,2]
[391880433,1760949054552,-168.0,0.00026366,2]
[391880434,1760949054562,-736.0,0.00026387,3]
[391880435,1760949054575,-1000.0,0.00026421,2]
[391880436,1760949054589,-1000.0,0.00026421,2]
[391880437,1760949054602,-900.17946326,0.00026421,2]
[391880438,1760949054614,-736.0,0.00026442,3]
[391880439,1760949054629,-260.0,0.00026446,2]
[391880440,1760949054643,-736.0,0.00026496,3]
[391880441,1760949054657,-307.53703169,0.00026506,2]
[391880442,1760949054667,-1000.013112,0.00026516,2]
[391880443,1760949054678,-969.37199468,0.00026521,2]
[391880444,1760949054690,-1000.0,0.00026521,2]
[391880445,1760949054704,-1000.0,0.00026521,2]
[391880446,1760949054718,-250.0,0.00026521,2]
[391880447,1760949054728,-941.11008311,0.00026523,2]
[391880448,1760949054740,-736.0,0.00026551,3]
[391880449,1760949054753,-240.0,0.00026563,2]
[391880450,1760949054764,-500.0,0.00026573,2]
[391880451,1760949054775,-559.63839702,0.00026573,2]
[391880452,1760949054787,-502.79717437,0.00026573,2]
[391880453,1760949054798,-500.0,0.00026573,2]
[391880454,1760949054810,-571.59976007,0.00026574,2]
[391880455,1760949054822,-201.93286099,0.00026599,2]
[391880456,1760949054834,-553.64373807,0.00026599,2]
[391880457,1760949054845,-736.0,0.00026606,3]
[391880458,1760949054857,-2000.0,0.00026616,2]
[391880459,1760949054868,-2000.0,0.00026616,2]
[391880460,1760949054880,-2000.0,0.00026616,2]
[391880461,1760949054891,-1500.0,0.00026616,2]
[391880462,1760949054902,-736.0,0.00026661,3]
[391880463,1760949054914,-1500.0,0.00026668,2]
[391880464,1760949054925,-542.87348369,0.00026668,2]
[391880465,1760949054936,-1293.16431153,0.00026668,2]
[391880466,1760949054947,-1500.0,0.00026668,2]
[391880467,1760949054958,-1570.82366199,0.00026668,2]
[391880468,1760949054969,-1500.0,0.00026668,2]
[391880469,1760949054980,-191.76914439,0.00026668,2]
[391880470,1760949054991,-518.20040332,0.00026668,2]
[391880471,1760949055002,-1500.0,0.00026668,2]
[391880472,1760949055013,-1515.02448864,0.00026668,2]
[391880473,1760949055025,-1500.0,0.00026668,2]
[391880474,1760949055040,-1500.0,0.00026668,2]
[391880475,1760949055050,-673.276799,0.00026676,2]
[391880476,1760949055061,-424.57,0.00026696,2]
[391880477,1760949055072,-2866.8413828,0.000267,2]
[391880478,1760949055083,-736.0,0.00026715,3]
[391880479,1760949055095,-627.85151132,0.00026768,5]
[391880480,1760949055106,-350.0,0.00026768,2]
[391880481,1760949055118,-450.0,0.00026768,2]
[391880482,1760949055129,-759.75788133,0.0002677,3]
[391880483,1760949055140,-613.1709831,0.00026788,2]
[391880484,1760949055151,-518.878395,0.00026793,2]
[391880485,1760949055161,-447.001279,0.00026793,2]
[391880486,1760949055173,-155.601027,0.00026793,2]
[391880487,1760949055184,-755.89034812,0.00026872,2]
[391880488,1760949055196,-1645.28,0.0002688,3]
[391880489,1760949055207,-822.64,0.0002688,3]
[391880490,1760949055218,-411.32,0.0002688,3]
[391880491,1760949055229,-309.76,0.0002688,3]
[391880492,1760949055240,-168.0,0.00026906,2]
[391880493,1760949055251,-420.0,0.00026912,2]
[391880494,1760949055262,-1680.0,0.00026913,2]
[391880495,1760949055273,-287.0,0.00026913,2]
[391880496,1760949055284,-162.0,0.00026913,2]
[391880497,1760949055295,-287.0,0.00026913,2]
[391880498,1760949055306,-420.0,0.00026913,2]
[391880499,1760949055317,-168.0,0.00026918,7]
[391880500,1760949055328,-168.0,0.00026949,2]
[391880501,1760949055338,-168.0,0.00026951,2]
[391880502,1760949055349,-292.31004787,0.00026958,2]
[391880503,1760949055360,-1090.39393435,0.00026968,2]
[391880504,1760949055370,-685.21247534,0.00026968,2]
[391880505,1760949055381,-360.0,0.00026994,2]
[391880506,1760949055392,-7045.5,0.00027,2]
[391880507,1760949055403,-31182.93,0.00027,7]
[391880508,1760949055414,-178571.44,0.00027,3]
[391880509,1760949055427,-1680.0,0.00027034,2]
[391880510,1760949055440,-1500.0,0.00027068,2]
[391880511,1760949055451,-1500.0,0.00027068,2]
[391880512,1760949055461,-350.0,0.00027068,2]
[391880513,1760949055472,-157.67836206,0.0002707,2]
[391880514,1760949055483,-639.6787768,0.00027115,2]
[391880515,1760949055494,-351.47089336,0.00027116,2]
[391880516,1760949055505,-835.50537354,0.00027121,2]
[391880517,1760949055516,-1002.13746908,0.00027121,2]
[391880518,1760949055527,-209.40437684,0.00027147,2]
[391880519,1760949055538,-574.12855637,0.00027147,2]
[391880520,1760949055551,-1673.0845922,0.00027154,2]
[391880521,1760949055562,-262.5,0.00027163,2]
[391880522,1760949055572,-2500.0,0.00027164,2]
[391880523,1760949055583,-2500.0,0.00027164,2]
[391880524,1760949055594,-1450.84394728,0.00027164,2]
[391880525,1760949055605,-892.23150049,0.00027171,2]
[391880526,1760949055616,-2000.0,0.00027216,2]
[391880527,1760949055627,-607.5256638,0.00027216,2]
[391880528,1760949055637,-2000.0,0.00027216,2]
[391880529,1760949055650,-1401.58133939,0.00027216,2]
[391880530,1760949055660,-2000.0,0.00027216,2]
[391880531,1760949055671,-1109.35511646,0.00027216,2]
[391880532,1760949055682,-344.19119245,0.00027226,2]
[391880533,1760949055692,-518.878395,0.00027239,2]
[391880534,1760949055703,-447.001279,0.00027239,2]
[391880535,1760949055714,-156.701888,0.00027239,2]
[391880536,1760949055724,-155.601027,0.00027239,2]
[391880537,1760949055735,-168.0,0.00027268,2]
[391880538,1760949055746,-1838.47579981,0.00027303,5]
[391880539,1760949055757,-386.0595245,0.00027314,5]
[391880540,1760949055958,-339.82742202,0.00027316,2]
[391880541,1760949055969,-600.0,0.00027316,2]
[391880542,1760949055978,-198.6552585,0.0002739,2]
[391880543,1760949055988,-150.0,0.0002739,2]
[391880544,1760949055997,-154.08754,0.00027397,30]
[391880545,1760949056007,-154.08754,0.00027397,30]
[391880546,1760949056016,-154.08754,0.00027397,30]
[391880547,1760949056027,-154.08754,0.00027397,30]
[391880548,1760949056040,-154.08754,0.00027397,30]
[391880549,1760949056049,-154.08754,0.00027397,30]
[391880550,1760949056058,-154.08754,0.00027397,30]
[391880551,1760949056067,-154.08754,0.00027397,30]
[391880552,1760949056078,-154.08754,0.00027397,30]
[391880553,1760949056087,-154.08754,0.00027397,30]
[391880554,1760949056097,-154.08754,0.00027397,30]
[391880555,1760949056106,-154.08754,0.00027397,30]
[391880556,1760949056116,-154.08754,0.00027397,30]
[391880557,1760949056125,-154.08754,0.00027397,30]
[391880558,1760949056135,-154.08754,0.00027397,30]
[391880559,1760949056148,-154.08754,0.00027397,30]
[391880560,1760949056159,-154.08754,0.00027397,30]
[391880561,1760949056169,-154.08754,0.00027397,30]
[391880562,1760949056179,-154.08754,0.00027397,30]
[391880563,1760949056189,-154.087531,0.00027397,30]
[391880564,1760949056198,-151.0,0.00027397,30]
[391880565,1760949056208,-152.322127,0.00027397,30]
[391880566,1760949056217,-1935.042453,0.00027397,30]
[391880567,1760949056226,-1935.042453,0.00027397,30]
[391880568,1760949056235,-1935.042453,0.00027397,30]
[391880569,1760949056244,-1935.042453,0.00027397,30]
[391880570,1760949056253,-1935.042453,0.00027397,30]
[391880571,1760949056262,-1935.042453,0.00027397,30]
[391880572,1760949056271,-1935.042453,0.00027397,30]
[391880573,1760949056280,-1935.042453,0.00027397,30]
[391880574,1760949056289,-1935.042453,0.00027397,30]
[391880575,1760949056298,-1935.042453,0.00027397,30]
[391880576,1760949056307,-1935.042453,0.00027397,30]
[391880577,1760949056316,-1935.042453,0.00027397,30]
[391880578,1760949056325,-1935.042453,0.00027397,30]
[391880579,1760949056334,-1935.042453,0.00027397,30]
[391880580,1760949056343,-1935.042453,0.00027397,30]
[391880581,1760949056352,-1935.042453,0.00027397,30]
[391880582,1760949056363,-1935.042453,0.00027397,30]
[391880583,1760949056372,-1935.042453,0.00027397,30]
[391880584,1760949056381,-1935.042453,0.00027397,30]
[391880585,1760949056390,-1935.042454,0.00027397,30]
[391880586,1760949056399,-160.0,0.000274,30]
[391880587,1760949056408,-5383.52,0.000274,2]
[391880588,1760949056417,-1090.08174773,0.00027424,2]
[391880589,1760949056427,-1000.0,0.000275,2]
[391880590,1760949056437,-1000.0,0.000275,2]
[391880591,1760949056446,-1000.0,0.000275,2]
[391880592,1760949056455,-1000.0,0.000275,2]
[391880593,1760949056464,-1000.0,0.000275,2]
[391880594,1760949056473,-2620.28617563,0.000275,2]
[391880595,1760949056483,-460.0,0.00027542,2]
[391880596,1760949056492,-168.0,0.00027564,2]
[391880597,1760949056501,-1197.84075615,0.00027578,5]
[391880598,1760949056510,-1000.0,0.000276,2]
[391880599,1760949056519,-1000.0,0.000276,2]
[391880600,1760949056529,-366.49490237,0.00027601,2]
[391880601,1760949056538,-366.49490237,0.00027601,2]
[391880602,1760949056547,-1577.82391347,0.00027616,5]
[391880603,1760949056555,-2000.0,0.00027616,5]
[391880604,1760949056565,-450.0,0.00027616,5]
[391880605,1760949056574,-477.64,0.00027649,2]
[391880606,1760949056583,-333.73455751,0.00027651,2]
[391880607,1760949056592,-311.0,0.0002768,2]
[391880608,1760949056601,-518.878395,0.00027685,2]
[391880609,1760949056610,-447.001279,0.00027685,2]
[391880610,1760949056619,-156.701888,0.00027685,2]
[391880611,1760949056628,-155.601027,0.00027685,2]
[391880612,1760949056637,-156.701888,0.00027685,2]
[391880613,1760949056647,-155.601027,0.00027685,2]
[391880614,1760949056656,-154.761601,0.0002769,2]
[391880615,1760949056665,-217.15233878,0.00027695,2]
[391880616,1760949056674,-595.37131296,0.00027695,2]
[391880617,1760949056683,-168.0,0.000277,2]
[391880618,1760949056692,-3000.0,0.00027712,5]
[391880619,1760949056701,-548.6240976,0.00027726,2]
[391880620,1760949056710,-285.0,0.00027763,2]
[391880621,1760949056719,-2350.35554763,0.00027764,5]
[391880622,1760949056729,-2500.0,0.00027764,5]
[391880623,1760949056738,-2500.0,0.00027764,5]
[391880624,1760949056747,-373.74696649,0.00027783,2]
[391880625,1760949056756,-373.74696649,0.00027783,2]
[391880626,1760949056765,-2611.58048064,0.00027783,2]
[391880627,1760949056775,-174.04953911,0.00027843,2]
[391880628,1760949056783,-533.61310881,0.00027864,5]
[391880629,1760949056792,-366.49490237,0.00027933,6]
[391880630,1760949056802,-177.822,0.00027935,18]
[391880631,1760949056811,-168.0,0.00027975,2]
[391880632,1760949056820,-15188.06332311,0.00028,2]
[391880633,1760949056830,-10338.71524354,0.00028,5]
[391880634,1760949056839,-11112.37797043,0.00028,4]
[391880635,1760949056849,-787.55736928,0.00028,2]
[391880636,1760949056858,-2609.52677127,0.00028017,2]
[391880637,1760949056867,-1701.5494781,0.00028061,2]
[391880638,1760949056877,-560.0,0.0002809,2]
[391880639,1760949056886,-1181.5530201,0.00028092,2]
[391880640,1760949056895,-373.74696649,0.00028117,6]
[391880641,1760949056904,-1515.50384054,0.00028164,5]
[391880642,1760949056913,-550.0,0.00028164,5]
[391880643,1760949056924,-161.57387509,0.00028169,5]
[391880644,1760949056934,-225.18697532,0.00028243,2]
[391880645,1760949056943,-617.40005154,0.00028243,2]
[391880646,1760949056953,-3500.0,0.0002826,5]
[391880647,1760949056963,-366.49490237,0.00028265,10]
[391880648,1760949056972,-366.49490237,0.00028265,10]
[391880649,1760949056981,-183.8459268,0.00028289,2]
[391880650,1760949056990,-3000.0,0.00028312,5]
[391880651,1760949057000,-3000.0,0.00028312,5]
[391880652,1760949057010,-307.5,0.00028363,2]
[391880653,1760949057019,-168.0,0.00028376,2]
[391880654,1760949057032,-31182.93,0.000284,7]
[391880655,1760949057041,-373.74696649,0.00028451,10]
[391880656,1760949057050,-168.0,0.00028467,2]
[391880657,1760949057060,-159.97751647,0.00028471,7]
[391880658,1760949057069,-168.0,0.00028478,2]
[391880659,1760949057079,-137261.35951211,0.000285,7]
[391880660,1760949057088,-168.0,0.00028557,2]
[391880661,1760949057098,-5383.52,0.000286,2]
[391880662,1760949057107,-530.71,0.00028603,2]
[391880663,1760949057116,-168.0,0.00028623,2]
[391880664,1760949057126,-258.0,0.0002863,30]
[391880665,1760949057136,-660.0,0.00028638,2]
[391880666,1760949057145,-168.0,0.00028642,2]
[391880667,1760949057155,-35714.28,0.000287,4]
[391880668,1760949057164,-650.0,0.00028712,5]
[391880669,1760949057173,-168.0,0.00028717,2]
[391880670,1760949057183,-989.12601571,0.0002876,2]
[391880671,1760949057193,-4000.0,0.0002876,5]
[391880672,1760949057202,-250.31971598,0.0002876,2]
[391880673,1760949057212,-2318.4149331,0.0002876,2]
[391880674,1760949057222,-373.74696649,0.00028785,14]
[391880675,1760949057231,-373.74696649,0.00028785,14]
[391880676,1760949057241,-233.51889341,0.00028791,2]
[391880677,1760949057250,-640.24385345,0.00028791,2]
[391880678,1760949057260,-169.83253239,0.000288,7]
[391880679,1760949057269,-168.0,0.00028829,2]
[391880680,1760949057279,-3500.0,0.0002886,5]
[391880681,1760949057288,-3500.0,0.0002886,5]
[391880682,1760949057297,-502.0,0.00028888,7]
[391880683,1760949057307,-366.49490237,0.0002893,18]
[391880684,1760949057316,-366.49490237,0.0002893,18]
[391880685,1760949057326,-366.49490237,0.0002893,18]
[391880686,1760949057335,-755.89034812,0.0002895,2]
[391880687,1760949057344,-330.0,0.00028963,2]
[391880688,1760949057353,-881.98862225,0.00029,2]
[391880689,1760949057362,-502.44369659,0.00029,7]
[391880690,1760949057371,-168.0,0.00029011,2]
[391880691,1760949057380,-174.04953911,0.00029016,16]
[391880692,1760949057389,-373.74696649,0.0002912,18]
[391880693,1760949057398,-373.74696649,0.0002912,18]
[391880694,1760949057408,-162.0,0.0002916,2]
[391880695,1760949057417,-2351.0,0.00029161,2]
[391880696,1760949057427,-587.0,0.00029161,2]
[391880697,1760949057436,-760.0,0.00029185,2]
[391880698,1760949057445,-160.0,0.00029186,2]
[391880699,1760949057455,-1013.230428,0.000292,2]
[391880700,1760949057464,-402.9601108,0.00029226,2]
[391880701,1760949057474,-750.0,0.0002926,5]
[391880702,1760949057483,-242.15909246,0.00029339,2]
[391880703,1760949057492,-663.93287602,0.00029339,2]
[391880704,1760949057502,-4000.0,0.00029408,5]
[391880705,1760949057511,-4000.0,0.00029408,5]
[391880706,1760949057522,-2351.0,0.00029425,2]
[391880707,1760949057531,-9114.37572793,0.00029531,2]
[391880708,1760949057540,-71589.98523032,0.0002956,2]
[391880709,1760949057549,-295.28147955,0.00029563,2]
[391880710,1760949057558,-1000.0,0.00029631,2]
[391880711,1760949057567,-1000.0,0.00029631,2]
[391880712,1760949057576,-1000.0,0.00029631,2]
[391880713,1760949057585,-1000.0,0.00029631,2]
[391880714,1760949057594,-1000.0,0.00029631,2]
[391880715,1760949057603,-1000.0,0.00029631,2]
[391880716,1760949057612,-1000.0,0.00029631,2]
[391880717,1760949057620,-1000.0,0.00029631,2]
[391880718,1760949057629,-1000.0,0.00029631,2]
[391880719,1760949057639,-359.899,0.00029631,2]
[391880720,1760949057648,-402.9601108,0.000297,7]
[391880721,1760949057657,-3000.0,0.000297,2]
[391880722,1760949057666,-1000.0,0.000297,2]
[391880723,1760949057675,-159.8254785,0.00029708,2]
[391880724,1760949057684,-3000.0,0.0002971,2]
[391880725,1760949057693,-3335.643244,0.0002972,2]
[391880726,1760949057702,-860.0,0.00029733,2]
[391880727,1760949057712,-7000.0,0.00029779,6]
[391880728,1760949057721,-500.0,0.0002978,15]
[391880729,1760949057730,-31182.93,0.000298,7]
[391880730,1760949057740,-757.02076465,0.00029808,5]
[391880731,1760949057749,-251.11897888,0.00029887,2]
[391880732,1760949057758,-688.49839244,0.00029887,2]
[391880733,1760949057767,-5383.52,0.000299,2]
[391880734,1760949057776,-511.25074962,0.00029956,5]
[391880735,1760949057785,-4500.0,0.00029956,5]
[391880736,1760949057794,-200.0,0.0003,7]
[391880737,1760949057803,-160.0,0.0003,30]
[391880738,1760949057811,-160.0,0.0003,30]
[391880739,1760949057820,-163.26138411,0.0003,30]
[391880740,1760949057829,-518.878395,0.0003,15]
[391880741,1760949057838,-447.001279,0.0003,15]
[391880742,1760949057847,-1000.0,0.0003,14]
[391880743,1760949057856,-1292.77429664,0.0003,2]
[391880744,1760949057865,-155.0,0.0003,14]
[391880745,1760949057874,-1001.2839673,0.0003,14]
[391880746,1760949057883,-1000.0,0.0003,4]
[391880747,1760949057892,-3628.4635694,0.00030024,2]
[391880748,1760949057902,-1315.8876733,0.0003005,2]
[391880749,1760949057911,-500.0,0.00030054,15]
[391880750,1760949057920,-200.96,0.000301,7]
[391880751,1760949057930,-150.0,0.00030157,7]
[391880752,1760949057939,-174.04953911,0.00030188,30]
[391880753,1760949057948,-242.63163458,0.00030281,2]
[391880754,1760949057958,-500.0,0.00030328,15]
[391880755,1760949057967,-260.4103811,0.00030435,2]
[391880756,1760949057976,-713.97283296,0.00030435,2]
[391880757,1760949057986,-5000.0,0.00030504,5]
[391880758,1760949057995,-5000.0,0.00030548,3]
[391880759,1760949058005,-500.0,0.00030602,15]
[391880760,1760949058014,-8000.0,0.00030864,7]
[391880761,1760949058023,-500.0,0.00030876,15]
[391880762,1760949058039,-270.0455652,0.00030983,2]
[391880763,1760949058048,-740.38982778,0.00030983,2]
[391880764,1760949058057,-1001.92,0.00031,2]
[391880765,1760949058067,-200.0,0.00031,7]
[391880766,1760949058077,-183.30272066,0.00031,120]
[391880767,1760949058086,-204.00726077,0.00031,120]
[391880768,1760949058096,-1045.51535246,0.00031,120]
[391880769,1760949058105,-560.89172555,0.00031,120]
[391880770,1760949058114,-610.50807561,0.00031,120]
[391880771,1760949058123,-183.7,0.00031,2]
[391880772,1760949058133,-500.0,0.00031,2]
[391880773,1760949058142,-755.89034812,0.00031029,2]
[391880774,1760949058151,-5500.0,0.00031052,5]
[391880775,1760949058163,-151.53,0.00031109,15]
[391880776,1760949058173,-500.0,0.0003115,15]
[391880777,1760949058183,-150.72,0.00031164,15]
[391880778,1760949058192,-809.6196573,0.00031169,2]
[391880779,1760949058202,-1001.92,0.00031174,2]
[391880780,1760949058211,-5383.52,0.000312,2]
[391880781,1760949058221,-293.6142273,0.00031201,2]
[391880782,1760949058230,-151.53,0.00031209,15]
[391880783,1760949058239,-150.72,0.00031264,15]
[391880784,1760949058249,-3982.48872259,0.0003127,2]
[391880785,1760949058258,-1181.5530201,0.0003129,2]
[391880786,1760949058375,-151.53,0.00031309,15]
[391880787,1760949058385,-150.72,0.00031364,15]
[391880788,1760949058394,-6000.0,0.00031402,7]
[391880789,1760949058403,-151.53,0.00031409,15]
[391880790,1760949058412,-500.0,0.00031424,15]
[391880791,1760949058422,-150.72,0.00031464,15]
[391880792,1760949058431,-151.74525222,0.000315,120]
[391880793,1760949058443,-150.0,0.000315,120]
[391880794,1760949058456,-151.53,0.00031509,15]
[391880795,1760949058466,-9114.37572792,0.00031516,2]
[391880796,1760949058476,-280.03725112,0.00031531,2]
[391880797,1760949058486,-767.7842514,0.00031531,2]
[391880798,1760949058495,-150.72,0.00031564,15]
[391880799,1760949058505,-1083.0,0.00031596,3]
[391880800,1760949058514,-823.0,0.00031596,2]
[391880801,1760949058523,-31182.93,0.000316,7]
[391880802,1760949058532,-6000.0,0.000316,5]
[391880803,1760949058541,-151.53,0.00031609,15]
[391880804,1760949058550,-155.0,0.00031644,14]
[391880805,1760949058560,-150.72,0.00031664,15]
[391880806,1760949058569,-183.8459268,0.0003168,2]
[391880807,1760949058579,-500.0,0.00031698,15]
[391880808,1760949058588,-151.53,0.00031709,15]
[391880809,1760949058598,-150.72,0.00031764,15]
[391880810,1760949058607,-151.53,0.00031809,15]
[391880811,1760949058617,-150.72,0.00031864,15]
[391880812,1760949058626,-1045.51535246,0.000319,120]
[391880813,1760949058635,-560.89172555,0.000319,120]
[391880814,1760949058645,-610.50807561,0.000319,120]
[391880815,1760949058654,-151.53,0.00031909,15]
[391880816,1760949058663,-150.72,0.00031964,15]
[391880817,1760949058673,-500.0,0.00031972,15]
[391880818,1760949058683,-1787.93810506,0.00032,30]
[391880819,1760949058693,-8713.14828821,0.00032,4]
[391880820,1760949058702,-350.0,0.00032,120]
[391880821,1760949058711,-151.53,0.00032009,15]
[391880822,1760949058721,-3292.0,0.00032027,3]
[391880823,1760949058730,-150.72936283,0.00032064,15]
[391880824,1760949058739,-297.09819123,0.00032079,2]
[391880825,1760949058749,-796.19226871,0.00032079,2]
[391880826,1760949058758,-518.878395,0.00032089,15]
[391880827,1760949058767,-447.001279,0.00032089,15]
[391880828,1760949058777,-151.53,0.00032109,15]
[391880829,1760949058786,-4114.33579214,0.00032148,5]
[391880830,1760949058794,-151.53,0.00032209,15]
[391880831,1760949058804,-200.0,0.00032265,120]
[391880832,1760949058813,-151.53,0.00032309,15]
[391880833,1760949058822,-400.14152057,0.000324,2]
[391880834,1760949059059,-4983.37847943,0.000324,2]
[391880835,1760949059068,-151.53,0.00032409,15]
[391880836,1760949059078,-1000.0,0.000325,4]
[391880837,1760949059088,-151.53,0.00032509,15]
[391880838,1760949059097,-151.53,0.00032609,15]
[391880839,1760949059106,-825.65138265,0.00032627,2]
[391880840,1760949059115,-4204.0,0.00032681,2]
[391880841,1760949059125,-151.53,0.00032709,15]
[391880842,1760949059135,-151.53,0.00032809,15]
[391880843,1760949059143,-2999.0,0.00032876,120]
[391880844,1760949059152,-151.0,0.00032877,30]
[391880845,1760949059162,-151.0,0.00032877,30]
[391880846,1760949059170,-151.0,0.00032877,30]
[391880847,1760949059179,-151.0,0.00032877,30]
[391880848,1760949059189,-151.0,0.00032877,30]
[391880849,1760949059198,-151.0,0.00032877,30]
[391880850,1760949059207,-151.0,0.00032877,30]
[391880851,1760949059215,-151.0,0.00032877,30]
[391880852,1760949059224,-151.0,0.00032877,30]
[391880853,1760949059233,-151.0,0.00032877,30]
[391880854,1760949059242,-151.0,0.00032877,30]
[391880855,1760949059251,-151.0,0.00032877,30]
[391880856,1760949059259,-151.0,0.00032877,30]
[391880857,1760949059268,-275.257916,0.00032877,30]
[391880858,1760949059277,-500.0,0.00032877,5]
[391880859,1760949059286,-400.0,0.000329,60]
[391880860,1760949059295,-1045.51535246,0.000329,120]
[391880861,1760949059304,-560.89172555,0.000329,120]
[391880862,1760949059313,-610.50807561,0.000329,120]
[391880863,1760949059322,-151.53,0.00032909,60]
[391880864,1760949059331,-411.0,0.00032956,2]
[391880865,1760949059340,-500.0,0.00032973,5]